Cogmind - Beta 13 @@@ ROGUE MODE // 2024.04.08 @ 13:40:13 Player: Calliope Result: Destroyed by L-31 Rogue with Katana Performance ------------- Evolutions (1) 500 Regions Visited (2) 400 Robots Destroyed (25) 125 Value Destroyed (549) 549 Prototype IDs (0) 0 Alien Tech Used (0) 0 Bonus (0) 0 TOTAL SCORE: 1574 Bonus ------- None Cogmind --------- Core Integrity 0/400 Matter 299/300 Energy 100/100 System Corruption 0% Temperature Cool (0) Movement Core (350) Ox6 Location -9/Materials Parts ------- > --- POWER (1) -------- (None) > --- PROPULSION (2) --- (None) > --- UTILITY (4) ------ Large Storage Unit > --- WEAPON (2) ------- (None) > --- INVENTORY (15) --- Light Ion Engine Hover Unit Hover Unit Terrain Scanner Hacking Suite Autogun Datajack Peak State ------------ > --- POWER ------------ Ion Engine > --- PROPULSION ------- Light Treads Light Treads > --- UTILITY ---------- Targeting Computer Trap Extractor > --- WEAPON ----------- Autogun Autogun > --- INVENTORY -------- Light Ion Engine Hover Unit Hover Unit Medium Laser Datajack [Rating: 10] Favorites ----------- Power Ion Engine Engine Ion Engine Propulsion Light Treads Treads Light Treads Utility Targeting Computer Device Trap Extractor Storage Medium Storage Unit Processor Targeting Computer Weapon Autogun Energy Gun Medium Laser Ballistic Gun Autogun Build | -11 -10 -9 ------- Run | Yrd Mat Mat Slots Evolved 2 | . . 2 Power . | . . . Propulsion . | . . . Utility 2 | . . 2 Weapon . | . . . Parts Attached 14 | 5 9 . Power 3 | 1 2 . Engine 3 | 1 2 . Core . | . . . Reactor . | . . . Propulsion 2 | 2 . . Treads 2 | 2 . . Leg . | . . . Wheel . | . . . Hover . | . . . Flight . | . . . Utility 4 | . 4 . Device 1 | . 1 . Storage 2 | . 2 . Processor 1 | . 1 . Hackware . | . . . Protection . | . . . Artifact . | . . . Weapon 5 | 2 3 . Energy Gun 1 | 1 . . Energy Cannon . | . . . Ballistic Gun 4 | 1 3 . Ballistic Cannon . | . . . Launcher . | . . . Special Weapon . | . . . Impact Weapon . | . . . Slashing Weapon . | . . . Piercing Weapon . | . . . Special Melee Weapon . | . . . Unidentified Prototypes . | . . . Parts Lost 4 | . 1 3 Power 1 | . 1 . Propulsion 2 | . . 2 Utility . | . . . Weapon 1 | . . 1 Highest Loss Streak 3 | . 1 3 To Critical Strikes . | . . . Average Slot Usage (%) 93 | . 94 56 Engine 13 | . 14 7 Treads 27 | . 28 14 Device 2 | . 2 . Storage 6 | . 6 11 Processor 13 | . 13 8 Energy Gun 3 | . 4 . Ballistic Gun 23 | . 23 14 Naked Turns . | . . . Heaviest Build 31 | 8 31 31 Greatest Support 40 | 40 40 40 Greatest Overweight (x) 6 | . 6 6 Average Overweight (x) . | . . . Largest Inventory Capacity 15 | 5 15 15 Average Capacity 7 | 5 7 15 Most Carried 9 | 2 9 8 Average Carried 5 | 1 5 7 Final Capacity 15 | 5 15 15 Final Carried 8 | 2 8 7 Class Distribution -------------------- 100% | Mutant Dominant Class ---------------- Mutant | -10/Materials Mutant | -9/Materials Resources | -11 -10 -9 ----------- Run | Yrd Mat Mat Matter Collected 675 | 241 434 . Remotely . | . . . Salvage Created 689 | . 689 . Parts 57 | . 57 . Haulers Intercepted . | . . . Recyclers Shooed . | . . . Parts Field Recycled . | . . . Retrieved Matter . | . . . Parts Self-Destructed . | . . . Prevented . | . . . Kills | -11 -10 -9 ------- Run | Yrd Mat Mat Combat Hostiles Destroyed 17 | . 17 . Guns 17 | . 17 . Classes Destroyed 6 | . 6 . Worker 1 | . 1 . Builder 1 | . 1 . Operator 3 | . 3 . Watcher 3 | . 3 . Swarmer 6 | . 6 . Grunt 11 | . 11 . Best Kill Streak 3 | . 3 . Combat Bots Only 3 | . 3 . Max Kills in Single Turn 2 | . 2 . Gunslinging 1 | . 1 . Exploded . | . . . Melee . | . . . Uniques/NPCs Destroyed . | . . . Combat | -11 -10 -9 -------- Run | Yrd Mat Mat Hostile Shots Fired 130 | . 78 52 Missed 29 | . 20 9 Damage Taken 1318 | . 620 698 Core 524 | . 117 407 Absorbed by Shields . | . . . Regen/Repaired (Parts) 91 | . 91 . Core Remaining (%) 76 | 100 53 . Volleys Fired 60 | . 53 7 Largest 2 | . 2 2 Hottest 70 | . 70 46 Shots Fired 117 | . 106 11 Gun 117 | . 106 11 Cannon . | . . . Launcher . | . . . Special . | . . . Kinetic 105 | . 94 11 Thermal 12 | . 12 . Explosive . | . . . Electromagnetic . | . . . Robot Hit Streak 16 | . 16 6 Robot Miss Streak 4 | . 4 2 Penetration Max . | . . . Secondary Targets 4 | . 4 . Max Gunslinging Chain 1 | . 1 . Shots Hit Robots 83 | . 75 8 Core Hits 35 | . 33 2 Critical Kills 1 | . 1 . Critical Parts Destroyed . | . . . Critical Strikes 2 | . 2 . Burn 1 | . 1 . Destroy 1 | . 1 . Melee Attacks . | . . . Impact . | . . . Slashing . | . . . Piercing . | . . . Sneak Attacks . | . . . Combat Hostiles . | . . . Follow-up Attacks . | . . . Damage Inflicted 1203 | . 1068 135 Guns 1199 | . 1068 131 Cannons . | . . . Explosions . | . . . Melee . | . . . Ramming 4 | . . 4 Kinetic 1060 | . 929 131 Thermal 139 | . 139 . Explosive . | . . . Electromagnetic . | . . . Impact . | . . . Slashing . | . . . Piercing . | . . . Highest Corruption . | . . . Average Corruption . | . . . Corruption Purged . | . . . Corruption Blocked . | . . . Overload Shots . | . . . Overflow Damage . | . . . Projectiles . | . . . Explosions . | . . . Melee . | . . . Knockbacks . | . . . Impact . | . . . Kinetic . | . . . Secondary . | . . . Self-Inflicted Damage . | . . . Shots . | . . . Rammed 9 | . . 9 Targets Rammed 9 | . . 9 Kicked . | . . . Crushed . | . . . Highest Temperature 203 | . 203 12 Average Temperature 40 | . 42 7 Received Heat Transfer 495 | . 291 204 Siege Activations . | . . . Robots Corrupted . | . . . Combat Hostiles . | . . . Parts Fried . | . . . Impact Corruptions . | . . . Robots Melted . | . . . Combat Hostiles . | . . . Parts Melted 3 | . 3 . Heat Transferred 481 | . 481 . Parts Sabotaged . | . . . Parts Stolen . | . . . Parts Stripped . | . . . Power Chain Reactions . | . . . Alert | -11 -10 -9 ------- Run | Yrd Mat Mat Peak Influence 196 | . 196 71 Initial 71 | . . 71 Average 90 | . 93 60 Maximum Alert Level . | . . . Low Security (%) 100 | 100 100 100 Level 1 . | . . . Level 2 . | . . . Level 3 . | . . . Level 4 . | . . . Level 5 . | . . . High Security . | . . . Max Security . | . . . Squads Dispatched 6 | . 6 . Investigation 3 | . 3 . Extermination . | . . . Reinforcement 3 | . 3 . Assault . | . . . Garrison . | . . . Intercept . | . . . Searches Triggered . | . . . Construction Impeded . | . . . Haulers Reinforced . | . . . Active Scanning Responses . | . . . Cargo Convoy Interrupts . | . . . Stealth | -11 -10 -9 --------- Run | Yrd Mat Mat Distress Signals 1 | . . 1 Communications Jammed . | . . . Distress Signals . | . . . Times Spotted 27 | . 23 4 Peak Tracking Total 4 | . 3 4 Tactical Retreats . | . . . Traps | -11 -10 -9 ------- Run | Yrd Mat Mat Traps Triggered 2 | . 2 . Indirectly . | . . . Trap Hack Attempts . | . . . Triggered . | . . . Disarmed . | . . . Reprogrammed . | . . . Reused . | . . . Traps Extracted . | . . . Installed . | . . . Triggered . | . . . Machines | -11 -10 -9 ---------- Run | Yrd Mat Mat Machines Disabled . | . . . Max in Single Turn . | . . . Machines Repaired . | . . . Machines Dismantled . | . . . Machines Sabotaged . | . . . Overloaded Fab Kills . | . . . Hacking | -11 -10 -9 --------- Run | Yrd Mat Mat Machines Accessed 8 | . 7 1 Terminals 7 | . 6 1 Fabricators . | . . . Repair Stations 1 | . 1 . Recycling Units . | . . . Scanalyzers . | . . . Garrison Access . | . . . Total Hacks 31 | . 28 3 Successful 12 | . 10 2 Failed 19 | . 18 1 Catastrophic 5 | . 5 . Database Lockouts . | . . . Manual 24 | . 21 3 Terminals 28 | . 25 3 Fabricators . | . . . Repair Stations 3 | . 3 . Recycling Units . | . . . Scanalyzers . | . . . Garrison Access . | . . . Terminal Hacks 8 | . 7 1 Record 5 | . 5 . Branch Access Points 1 | . . 1 Patrol Status 1 | . 1 . Zone Layout 1 | . 1 . Fabricator Hacks . | . . . Repair Station Hacks 2 | . 2 . Scan Component 1 | . 1 . Repair 1 | . 1 . Recycling Unit Hacks . | . . . Scanalyzer . | . . . Garrison Access Hacks . | . . . Unauthorized Hacks 2 | . 1 1 Terminals 2 | . 1 1 Botnet 2 | . 1 1 Fabricators . | . . . Repair Stations . | . . . Recycling Units . | . . . Scanalyzers . | . . . Garrison Access . | . . . Data Cores Recovered . | . . . Used . | . . . Hacking Detections 8 | . 8 . Full Trace Events 2 | . 2 . Feedback Events . | . . . Feedback Blocked . | . . . Robot Schematics Acquired . | . . . Robots Built . | . . . Authchips . | . . . Time . | . . . Total Robot Build Rating . | . . . Part Schematics Acquired . | . . . Parts Built . | . . . Authchips . | . . . Time . | . . . Total Part Build Rating . | . . . Parts Repaired 1 | . 1 . Time 32 | . 32 . Parts Recycled . | . . . Recycled Matter . | . . . Retrieved Matter . | . . . Retrieved Components . | . . . Parts Scanalyzed . | . . . Part Schematics Acquired . | . . . Parts Damaged . | . . . Bothacking | -11 -10 -9 ------------ Run | Yrd Mat Mat Used RIF Installer . | . . . Robots Hacked . | . . . Non-combat . | . . . Combat . | . . . Robot Hacks Applied . | . . . Relay Couplers Released . | . . . Fabnet Peak Effective % . | . . . Robots Rewired . | . . . Allies Hacked . | . . . Hacks Repelled . | . . . Allies | -11 -10 -9 -------- Run | Yrd Mat Mat Total Allies . | . . . Largest Group . | . . . Highest-Rated Group . | . . . Highest-Rated Ally . | . . . Total Orders . | . . . Ally Attacks . | . . . Total Damage . | . . . Kills . | . . . Allies Corrupted . | . . . Allies Melted . | . . . Intel | -11 -10 -9 ------- Run | Yrd Mat Mat Robot Analysis Total . | . . . Derelict Logs Recovered . | . . . Drone Launches . | . . . Drone Recoveries . | . . . Exploration | -11 -10 -9 ------------- Run | Yrd Mat Mat Turns Passed 3638 | 90 3442 106 Spaces Moved 1173 | 54 1088 31 Core 18 | 4 13 1 Treads 1155 | 50 1075 30 Legs . | . . . Wheels . | . . . Hover . | . . . Flight . | . . . Fastest Speed 50 | 50 160 160 Average Speed 161 | 151 162 166 Slowest Speed 350 | 160 350 350 Overloaded Moves . | . . . Propulsion Burnouts . | . . . Robots Hopped . | . . . Cave-ins Triggered . | . . . Exploration Rate (%) 35 | 4 98 5 Regions Visited 2 Branch Regions . Pre-discovered Areas . | . . . Known Exits Taken . | . . . Unknown Exits Taken 2 | 1 1 . Scrap Searched . | . . . Spaces Dug . | . . . Terrain Destroyed . | . . . Melee . | . . . Projectile . | . . . AOE . | . . . Terrain Rammed . | . . . Walls Destroyed . | . . . Machines Disabled . | . . . Actions | -11 -10 -9 --------- Run | Yrd Mat Mat Total 2794 | 60 2677 57 Wait 1521 | . 1512 9 Move 1171 | 53 1087 31 Hop . | . . . Pick Up 11 | 2 9 . Fast Attach 11 | 5 6 . Attach 1 | . 1 . Detach . | . . . Swap 2 | . 2 . Drop 8 | . 7 1 Fire 60 | . 53 7 Melee . | . . . Ram 9 | . . 9 Kick . | . . . Crush . | . . . Escape Stasis . | . . . Rewire . | . . . Trap . | . . . Miscellaneous . | . . . Route ------- -11/Scrapyard -10/Materials (discovered 4 exits: *Mat x3 / [*Min]) -9/Materials (discovered 2 exits: Min x2) History --------- Turn | Location | Event 3 | -11/Scrapyard | Discovered new exit (range 15) 91 | -11/Scrapyard | Entered Materials 307 | -10/Materials | Build established: Mutant 1004 | -10/Materials | Discovered new exit (range 5) 1301 | -10/Materials | Discovered new exit (range 3) 1508 | -10/Materials | Repaired Autogun 1826 | -10/Materials | Discovered new exit (range 16) 2461 | -10/Materials | Discovered new exit (range 12) 3533 | -10/Materials | Entered another Materials area 3533 | -9/Materials | Evolved 2 slots: Utility x2 3618 | -9/Materials | Core integrity fell below 50% 3629 | -9/Materials | Core integrity fell below 20% 3635 | -9/Materials | Identified exit to Mines 3636 | -9/Materials | Lost 3 parts (2n1w) 3639 | -9/Materials | Destroyed by L-31 Rogue with Katana Last Messages --------------- 03610_ Destabilizing: Core damaged (-20). 03614_ Slammed into L-31 Rogue. 03614_ Targeting Computer severed. 03617_ Slammed into G-34 Mercenary. 03624_ Destabilizing: Core damaged (-4). 03628_ Slammed into G-34 Mercenary. 03635_ Connecting with Terminal... >>Access(Branch) Found 2 branch access points: (11,10) Mines (90,14) Mines Map updated. 03635_ Connecting with Terminal... >>Trojan(Botnet) Trojan loaded successfully. Testing... Terminal linked with 0 systems. Awaiting botnet instructions. 03635_ Connecting with Terminal... 03635_ Slammed into G-34 Mercenary. Map ----- +----------------------------------------------------+ | ?????????????????????????????????????????????????? | | ?????????????????????????????????????????????????? | | ?????????????????????????????????????????????????? | | ?????????????????????????????????????????????????? | | ?????????????????????????????????????????????????? | | ?????????????????????????????????????????????????? | | ??????????????????? ???????????????????????????? | | ??????????????????? #??????????????????????????? | | ??????????????????? #??????????????????????????? | | ??????????????????+ #??????????????????????????? | | ??????????????????# #??????????????????????????? | | ??????????????????# #??????????????????????????? | | ?????????????????## ##?????????????????????????? | | ?????????????????# | #?????????????????????????? | | ?????????????????# #?????????????????????????? | | ?????????????????# +?????????????????????????? | | ?????????????????? #?????????????????????????? | | ?????????????????? #?????????????????????????? | | ??????????????????# ############???????????????? | | ??????????????????# ???????????????? | | ?????????########## ???????????????????? | | ?????????# + ############???????????????? | | ?????????# """ # ## T #???????????????? | | ?????????# ""R" # ## * [#???????????????? | | ?????????# "" " # ##*[ #???????????????? | | ?????????# ######g@l #???????????????? | | ?????????# #????#g#######w#???????????????? | | ?????????# [[[ ###### ##### ?????????? | | ?????????# [[[ + ?????????? | | ?????????# [[ ############+##????????????????? | | ?????????##########??????????????????????????????? | | ?????????????????????????????????????????????????? | | ?????????????????????????????????????????????????? | | ?????????????????????????????????????????????????? | | ?????????????????????????????????????????????????? | | ?????????????????????????????????????????????????? | | ?????????????????????????????????????????????????? | | | | | | | | | | | | | | | | | | | | | | | | | | | +----------------------------------------------------+ Best States ------------- Heat Dissipation 28 Energy Generation 10 Energy Capacity 250 Matter Stores 300 Matter Capacity 300 Sight Range 16 Terrain Scan Density 10 Evasion (%) 40 Targeting Accuracy 5 Recoil Reduction 2 Trap Extractor Capacity 4 Item Schematics ----------------- None Robot Schematics ------------------ None Fabricated ------------ Nothing Alien Tech Used ----------------- None Achievements -------------- None Challenges ------------ None Game ------ Seed XenonFortressDriver Manual? 0 Play Time 00:27:30 Cumulative 4.0 hours Start 2024.04.08 @ 12:55:25 End 2024.04.08 @ 13:40:13 Sessions 1 Manual Loads 0 Difficulty Rogue Special Mode None Game No. 12 Rogue 10 Adventurer 0 Explorer 2 Win Type - Total 0 Types 0/0/0/0/0/0/0/0/0 Lore% 3 Gallery% 7 Achievement% 11 Wizard Run 0 Options --------- Layout 1 ASCII 0 Keyboard 1 Movement Vi Keybinds 0 Fullscreen 1 Font 32/SmallcapsGlow Map View 50x35 Zoom Use 0% Tactical HUD 1 Map Filters NONE Filters NONE Steam 1 RUN: 28bee6f9-8d40-41c5-aea3-e516ef1baa4f